[Event "*** Titled Tuesday Blitz"]
[Site "Chess.com"]
[Date "2019.03.05"]
[Round "8"]
[White "SF-96"]
[Black "NemtsevIgor"]
[Result "1-0"]
[WhiteElo "2567"]
[BlackElo "2345"]
[TimeControl "180+2"]
[EndTime "14:57:58 PST"]
[Termination "SF-96 won by resignation"]

1. e4 {[%clk 0:03:00.4]} 1... c6 {[%clk 0:03:00.7]} 2. d4 {[%clk 0:02:58.7]}
2... d5 {[%clk 0:03:01.8]} 3. e5 {[%clk 0:02:59.8]} 3... c5 {[%clk 0:03:02]} 4.
Nf3 {[%clk 0:03:00.8]} 4... Nc6 {[%clk 0:03:02.3]} 5. c4 {[%clk 0:03:01.9]} 5...
e6 {[%clk 0:02:51.3]} 6. cxd5 {[%clk 0:02:58.6]} 6... exd5 {[%clk 0:02:43.1]} 7.
Nc3 {[%clk 0:02:53.9]} 7... Be6 {[%clk 0:02:34.7]} 8. Bg5 {[%clk 0:02:31.5]}
8... Qb6 {[%clk 0:02:28.1]} 9. Na4 {[%clk 0:02:08.3]} 9... Qa5+ {[%clk 0:02:11]}
10. Bd2 {[%clk 0:02:05.1]} 10... Qc7 {[%clk 0:02:11.8]} 11. Nxc5 {[%clk
0:02:02]} 11... Bxc5 {[%clk 0:02:12.2]} 12. dxc5 {[%clk 0:02:03.9]} 12... Nxe5
{[%clk 0:02:06.1]} 13. Bb5+ {[%clk 0:02:01.2]} 13... Nc6 {[%clk 0:02:06.8]} 14.
Bc3 {[%clk 0:01:46.6]} 14... Nf6 {[%clk 0:01:57.5]} 15. O-O {[%clk 0:01:19.7]}
15... Ne4 {[%clk 0:01:52.1]} 16. Be5 {[%clk 0:01:14.5]} 16... Qa5 {[%clk
0:01:39.2]} 17. Nd4 {[%clk 0:01:10.6]} 17... O-O {[%clk 0:01:29.1]} 18. Bxc6
{[%clk 0:00:36.4]} 18... bxc6 {[%clk 0:01:28.6]} 19. Nxc6 {[%clk 0:00:31.1]}
19... Qxc5 {[%clk 0:01:27.8]} 20. Rc1 {[%clk 0:00:32.3]} 20... Qb6 {[%clk
0:01:18]} 21. Ne7+ {[%clk 0:00:23.1]} 21... Kh8 {[%clk 0:01:17]} 22. Nxd5 {[%clk
0:00:17]} 22... Qb5 {[%clk 0:01:05.7]} 23. f3 {[%clk 0:00:09]} 23... Qxd5 {[%clk
0:00:29.9]} 24. Qxd5 {[%clk 0:00:09.6]} 24... Bxd5 {[%clk 0:00:30.9]} 25. fxe4
{[%clk 0:00:11.3]} 25... Bxe4 {[%clk 0:00:31.1]} 26. Rc7 {[%clk 0:00:12.2]}
26... f6 {[%clk 0:00:30.1]} 27. Bd4 {[%clk 0:00:08.7]} 27... a6 {[%clk
0:00:27.2]} 28. Re1 {[%clk 0:00:08.8]} 28... Rfe8 {[%clk 0:00:25]} 29. b4 {[%clk
0:00:07]} 29... Bd5 {[%clk 0:00:21.6]} 30. Rxe8+ {[%clk 0:00:06.6]} 30... Rxe8
{[%clk 0:00:22.4]} 31. a4 {[%clk 0:00:08.2]} 31... Bb3 {[%clk 0:00:22.5]} 32. b5
{[%clk 0:00:08.1]} 32... axb5 {[%clk 0:00:19.9]} 33. axb5 {[%clk 0:00:10]} 33...
Re1+ {[%clk 0:00:19]} 34. Kf2 {[%clk 0:00:11]} 34... h5 {[%clk 0:00:19.2]} 35.
Kxe1 {[%clk 0:00:11.8]} 1-0

[Event "*** Titled Tuesday Blitz"]
[Site "Chess.com"]
[Date "2019.03.05"]
[Round "8"]
[White "mishanick"]
[Black "wenx95"]
[Result "1-0"]
[WhiteElo "2983"]
[BlackElo "2527"]
[TimeControl "180+2"]
[EndTime "14:57:59 PST"]
[Termination "mishanick won by resignation"]

1. d4 {[%clk 0:02:57.1]} 1... g6 {[%clk 0:02:58.4]} 2. c4 {[%clk 0:02:58.7]}
2... Bg7 {[%clk 0:02:59.7]} 3. Nc3 {[%clk 0:03:00.4]} 3... c5 {[%clk 0:03:01]}
4. d5 {[%clk 0:03:01.9]} 4... Bxc3+ {[%clk 0:03:02.2]} 5. bxc3 {[%clk
0:03:03.8]} 5... f5 {[%clk 0:03:03.6]} 6. e4 {[%clk 0:03:05.5]} 6... fxe4 {[%clk
0:03:04.8]} 7. f3 {[%clk 0:03:06.6]} 7... e6 {[%clk 0:03:00.3]} 8. dxe6 {[%clk
0:02:32.4]} 8... Nc6 {[%clk 0:02:59.9]} 9. Be3 {[%clk 0:02:25.4]} 9... d6 {[%clk
0:02:32.7]} 10. fxe4 {[%clk 0:02:19.2]} 10... Qh4+ {[%clk 0:02:29.4]} 11. Kd2
{[%clk 0:02:08.5]} 11... Nf6 {[%clk 0:02:21.7]} 12. Bd3 {[%clk 0:01:54.1]} 12...
Bxe6 {[%clk 0:00:55.9]} 13. Nf3 {[%clk 0:01:53.8]} 13... Nxe4+ {[%clk
0:00:52.1]} 14. Kc2 {[%clk 0:01:54]} 14... Qg4 {[%clk 0:00:53.1]} 15. Qe2 {[%clk
0:01:49.1]} 15... Bf5 {[%clk 0:00:32.4]} 16. h3 {[%clk 0:01:30]} 16... Qg3
{[%clk 0:00:32.7]} 17. Nd2 {[%clk 0:01:19.5]} 17... Qe5 {[%clk 0:00:21.5]} 18.
Bxe4 {[%clk 0:00:49.2]} 18... Bxe4+ {[%clk 0:00:21.7]} 19. Kb2 {[%clk
0:00:50.4]} 19... O-O-O {[%clk 0:00:18.4]} 20. Rhe1 {[%clk 0:00:47.6]} 20... Bf5
{[%clk 0:00:16.8]} 21. Qf3 {[%clk 0:00:48.4]} 21... Nb4 {[%clk 0:00:15.5]} 22.
Re2 {[%clk 0:00:28]} 22... Nd3+ {[%clk 0:00:15.1]} 23. Kb3 {[%clk 0:00:28.6]}
23... Qg7 {[%clk 0:00:04.5]} 24. g4 {[%clk 0:00:25.6]} 24... Qc7 {[%clk
0:00:04]} 25. gxf5 {[%clk 0:00:22.5]} 25... Qb6+ {[%clk 0:00:05.2]} 26. Kc2
{[%clk 0:00:23.9]} 26... Ne5 {[%clk 0:00:05]} 27. Qd5 {[%clk 0:00:23.1]} 27...
gxf5 {[%clk 0:00:05.9]} 28. Bf4 {[%clk 0:00:19.4]} 28... Nc6 {[%clk 0:00:07.3]}
29. Nb3 {[%clk 0:00:17.7]} 29... Kb8 {[%clk 0:00:06.1]} 30. Bxd6+ {[%clk
0:00:17.3]} 30... Ka8 {[%clk 0:00:07.2]} 31. Qxc5 {[%clk 0:00:16.9]} 31... Qa6
{[%clk 0:00:08.4]} 32. Bf4 {[%clk 0:00:17.5]} 32... Rc8 {[%clk 0:00:07.5]} 33.
Qb5 {[%clk 0:00:17.9]} 33... Qa3 {[%clk 0:00:08.2]} 34. Qc5 {[%clk 0:00:17.4]}
34... Qa4 {[%clk 0:00:08.6]} 35. Kb2 {[%clk 0:00:18.3]} 35... Rhe8 {[%clk
0:00:07.7]} 36. Rae1 {[%clk 0:00:17.9]} 36... Red8 {[%clk 0:00:08.9]} 37. Qb5
{[%clk 0:00:18.5]} 37... Qxb5 {[%clk 0:00:07.3]} 38. cxb5 {[%clk 0:00:20.4]} 1-0

[Event "*** Titled Tuesday Blitz"]
[Site "Chess.com"]
[Date "2019.03.05"]
[Round "8"]
[White "diskeleven"]
[Black "ChessicallyInclined"]
[Result "0-1"]
[WhiteElo "2274"]
[BlackElo "2404"]
[TimeControl "180+2"]
[EndTime "14:58:01 PST"]
[Termination "ChessicallyInclined won by checkmate"]

1. d4 {[%clk 0:02:52.1]} 1... d5 {[%clk 0:02:59.7]} 2. c4 {[%clk 0:02:53]} 2...
e6 {[%clk 0:03:00.8]} 3. Nc3 {[%clk 0:02:54.1]} 3... Nf6 {[%clk 0:03:00]} 4. Bg5
{[%clk 0:02:55.1]} 4... Be7 {[%clk 0:02:59.1]} 5. e3 {[%clk 0:02:56.5]} 5...
Nbd7 {[%clk 0:03:00]} 6. Nf3 {[%clk 0:02:57.4]} 6... h6 {[%clk 0:03:01.5]} 7.
Bh4 {[%clk 0:02:57]} 7... O-O {[%clk 0:03:03.1]} 8. Rc1 {[%clk 0:02:49.8]} 8...
c5 {[%clk 0:03:02.2]} 9. cxd5 {[%clk 0:02:44.4]} 9... Nxd5 {[%clk 0:03:04.1]}
10. Bxe7 {[%clk 0:02:43.4]} 10... Nxe7 {[%clk 0:03:06]} 11. Bd3 {[%clk
0:02:37.6]} 11... b6 {[%clk 0:03:05.4]} 12. O-O {[%clk 0:02:38.3]} 12... Bb7
{[%clk 0:03:06.1]} 13. Re1 {[%clk 0:02:34.3]} 13... cxd4 {[%clk 0:03:06.3]} 14.
exd4 {[%clk 0:02:35.1]} 14... Nf6 {[%clk 0:03:06.8]} 15. Ne5 {[%clk 0:02:31.4]}
15... Ned5 {[%clk 0:02:58]} 16. Ne2 {[%clk 0:02:25.3]} 16... Rc8 {[%clk
0:02:56.9]} 17. Qd2 {[%clk 0:02:24.2]} 17... Rxc1 {[%clk 0:02:56.9]} 18. Rxc1
{[%clk 0:02:24.8]} 18... Qe7 {[%clk 0:02:54.7]} 19. a3 {[%clk 0:02:06]} 19...
Rd8 {[%clk 0:02:49.2]} 20. Re1 {[%clk 0:02:05.5]} 20... Qe8 {[%clk 0:02:48.4]}
21. Qc2 {[%clk 0:02:01.2]} 21... Rc8 {[%clk 0:02:47.9]} 22. Qb3 {[%clk
0:02:00.1]} 22... Rd8 {[%clk 0:02:41.3]} 23. Bb5 {[%clk 0:02:00.4]} 23... Qe7
{[%clk 0:02:40.8]} 24. Bc6 {[%clk 0:01:58.1]} 24... Rc8 {[%clk 0:02:37.8]} 25.
Bb5 {[%clk 0:01:53.4]} 25... a6 {[%clk 0:02:30.9]} 26. Bd3 {[%clk 0:01:49]}
26... Qc7 {[%clk 0:02:25.3]} 27. h4 {[%clk 0:01:44.6]} 27... Qb8 {[%clk
0:02:20.8]} 28. Bb1 {[%clk 0:01:45.4]} 28... Ne7 {[%clk 0:02:21.1]} 29. Qh3
{[%clk 0:01:45]} 29... Qd6 {[%clk 0:02:15.4]} 30. Rd1 {[%clk 0:01:40.6]} 30...
Be4 {[%clk 0:02:09.5]} 31. Ba2 {[%clk 0:01:40.1]} 31... Nf5 {[%clk 0:02:08.1]}
32. Nc4 {[%clk 0:01:28]} 32... Qe7 {[%clk 0:02:03.9]} 33. g4 {[%clk 0:01:25.6]}
33... Nd6 {[%clk 0:02:03.3]} 34. Ne5 {[%clk 0:01:25.3]} 34... Rc2 {[%clk
0:02:03.3]} 35. Nf4 {[%clk 0:01:02.9]} 35... Rxb2 {[%clk 0:02:02.5]} 36. Bxe6
{[%clk 0:00:49.4]} 36... fxe6 {[%clk 0:01:58.5]} 37. g5 {[%clk 0:00:50.2]} 37...
hxg5 {[%clk 0:01:59.5]} 38. hxg5 {[%clk 0:00:51.4]} 38... Nd5 {[%clk 0:02:00.1]}
39. g6 {[%clk 0:00:51.6]} 39... Qg5+ {[%clk 0:01:58.6]} 40. Kf1 {[%clk
0:00:42.6]} 40... Bxg6 {[%clk 0:00:59.9]} 41. Nfxg6 {[%clk 0:00:29.6]} 41...
Rxf2+ {[%clk 0:00:38.2]} 42. Kxf2 {[%clk 0:00:29.9]} 42... Ne4+ {[%clk
0:00:38.4]} 43. Kf3 {[%clk 0:00:19.4]} 43... Qe3+ {[%clk 0:00:38.7]} 44. Kg4
{[%clk 0:00:20.8]} 44... Nf2+ {[%clk 0:00:39.1]} 45. Kh4 {[%clk 0:00:21.3]}
45... Qxh3+ {[%clk 0:00:39.8]} 46. Kg5 {[%clk 0:00:22.3]} 46... Ne4# {[%clk
0:00:41]} 0-1

[Event "*** Titled Tuesday Blitz"]
[Site "Chess.com"]
[Date "2019.03.05"]
[Round "8"]
[White "j2806"]
[Black "Vadim_Biliy"]
[Result "0-1"]
[WhiteElo "1791"]
[BlackElo "2130"]
[TimeControl "180+2"]
[EndTime "14:58:03 PST"]
[Termination "Vadim_Biliy won by checkmate"]

1. e4 {[%clk 0:03:01.9]} 1... d6 {[%clk 0:02:59.9]} 2. d4 {[%clk 0:03:00.4]}
2... Nf6 {[%clk 0:03:00.3]} 3. Nc3 {[%clk 0:02:59.1]} 3... g6 {[%clk 0:03:00.5]}
4. Be3 {[%clk 0:02:57.9]} 4... c6 {[%clk 0:03:01]} 5. f3 {[%clk 0:02:58.1]} 5...
b5 {[%clk 0:03:01.6]} 6. Qd2 {[%clk 0:02:48]} 6... Nbd7 {[%clk 0:03:00.5]} 7.
O-O-O {[%clk 0:02:43.2]} 7... Nb6 {[%clk 0:02:57.7]} 8. d5 {[%clk 0:02:20.2]}
8... b4 {[%clk 0:02:48.6]} 9. Nce2 {[%clk 0:02:00]} 9... cxd5 {[%clk 0:02:46.4]}
10. exd5 {[%clk 0:01:59.4]} 10... Nbxd5 {[%clk 0:02:44]} 11. Nf4 {[%clk
0:01:55]} 11... Nxe3 {[%clk 0:02:38.4]} 12. Qxe3 {[%clk 0:01:54.9]} 12... Qa5
{[%clk 0:02:35.7]} 13. Kb1 {[%clk 0:01:44.3]} 13... Qb6 {[%clk 0:02:09.2]} 14.
Qxb6 {[%clk 0:01:40.5]} 14... axb6 {[%clk 0:02:09.2]} 15. Bb5+ {[%clk
0:01:37.9]} 15... Bd7 {[%clk 0:02:07.2]} 16. Bxd7+ {[%clk 0:01:36.8]} 16... Nxd7
{[%clk 0:02:06.6]} 17. Nd5 {[%clk 0:01:34.8]} 17... Kd8 {[%clk 0:01:53.9]} 18.
Nxb4 {[%clk 0:01:32.9]} 18... e6 {[%clk 0:01:51.5]} 19. Ne2 {[%clk 0:01:29.8]}
19... Kc7 {[%clk 0:01:45.4]} 20. Nd4 {[%clk 0:01:27.3]} 20... d5 {[%clk
0:01:40]} 21. Nd3 {[%clk 0:01:14.2]} 21... Bg7 {[%clk 0:01:38.8]} 22. Nb3 {[%clk
0:01:08.9]} 22... Ra4 {[%clk 0:01:30]} 23. a3 {[%clk 0:00:56.9]} 23... Rha8
{[%clk 0:01:27.7]} 24. c3 {[%clk 0:00:44.4]} 24... Kc6 {[%clk 0:01:21.3]} 25.
Nb4+ {[%clk 0:00:32.7]} 25... Kb7 {[%clk 0:01:12.8]} 26. Kc2 {[%clk 0:00:22.4]}
26... Nc5 {[%clk 0:01:11.1]} 27. Nxc5+ {[%clk 0:00:22.5]} 27... bxc5 {[%clk
0:01:10.9]} 28. Nd3 {[%clk 0:00:22.9]} 28... c4 {[%clk 0:01:03.5]} 29. Nc5+
{[%clk 0:00:22.7]} 29... Kc6 {[%clk 0:01:02.9]} 30. Nxa4 {[%clk 0:00:24.1]}
30... Rxa4 {[%clk 0:01:03.8]} 31. Rhe1 {[%clk 0:00:24.2]} 31... e5 {[%clk
0:01:02.6]} 32. Rd2 {[%clk 0:00:21.4]} 32... Kc5 {[%clk 0:00:55.3]} 33. Rde2
{[%clk 0:00:20.8]} 33... f6 {[%clk 0:00:53.8]} 34. f4 {[%clk 0:00:20.7]} 34...
e4 {[%clk 0:00:53.8]} 35. g3 {[%clk 0:00:21.3]} 35... f5 {[%clk 0:00:53.5]} 36.
Rd1 {[%clk 0:00:21.8]} 36... Ra5 {[%clk 0:00:45.6]} 37. Re3 {[%clk 0:00:22.6]}
37... d4 {[%clk 0:00:43.1]} 38. cxd4+ {[%clk 0:00:22.9]} 38... Bxd4 {[%clk
0:00:42.9]} 39. Re2 {[%clk 0:00:24]} 39... Rb5 {[%clk 0:00:42.7]} 40. Rb1 {[%clk
0:00:22.3]} 40... Rb3 {[%clk 0:00:42.2]} 41. Rd2 {[%clk 0:00:21.8]} 41... e3
{[%clk 0:00:39.6]} 42. Re2 {[%clk 0:00:21.6]} 42... Kd5 {[%clk 0:00:30.3]} 43.
Kd1 {[%clk 0:00:22.2]} 43... Ke4 {[%clk 0:00:29.6]} 44. Ke1 {[%clk 0:00:22]}
44... c3 {[%clk 0:00:29.1]} 45. bxc3 {[%clk 0:00:22.6]} 45... Rxb1# {[%clk
0:00:29.3]} 0-1

[Event "*** Titled Tuesday Blitz"]
[Site "Chess.com"]
[Date "2019.03.05"]
[Round "8"]
[White "Bad4life"]
[Black "Andrew-FB00"]
[Result "1-0"]
[WhiteElo "2467"]
[BlackElo "1851"]
[TimeControl "180+2"]
[EndTime "14:58:04 PST"]
[Termination "Bad4life won by resignation"]

1. e4 {[%clk 0:03:01.9]} 1... e5 {[%clk 0:03:00.4]} 2. Nf3 {[%clk 0:03:02.9]}
2... Nc6 {[%clk 0:03:01]} 3. Bc4 {[%clk 0:03:04.3]} 3... Bc5 {[%clk 0:03:00.4]}
4. O-O {[%clk 0:03:04.4]} 4... Nf6 {[%clk 0:02:51.3]} 5. d3 {[%clk 0:03:05.3]}
5... d6 {[%clk 0:02:51.2]} 6. a4 {[%clk 0:03:05.7]} 6... a6 {[%clk 0:02:49.6]}
7. c3 {[%clk 0:03:07]} 7... Bg4 {[%clk 0:02:48.3]} 8. h3 {[%clk 0:03:07.2]} 8...
Bh5 {[%clk 0:02:48.8]} 9. Re1 {[%clk 0:03:03.7]} 9... h6 {[%clk 0:02:45.7]} 10.
Ra2 {[%clk 0:02:59.7]} 10... O-O {[%clk 0:02:45.4]} 11. Nbd2 {[%clk 0:02:54.9]}
11... Qd7 {[%clk 0:02:42.2]} 12. Nf1 {[%clk 0:02:54.5]} 12... Bg6 {[%clk
0:02:34.1]} 13. b4 {[%clk 0:02:51.5]} 13... Ba7 {[%clk 0:02:34]} 14. Be3 {[%clk
0:02:52.5]} 14... Bxe3 {[%clk 0:02:29.7]} 15. fxe3 {[%clk 0:02:52]} 15... Ne7
{[%clk 0:02:29]} 16. Rf2 {[%clk 0:02:49.8]} 16... c6 {[%clk 0:02:28]} 17. Bb3
{[%clk 0:02:47.3]} 17... Bh5 {[%clk 0:02:15.6]} 18. Ng3 {[%clk 0:02:46.7]} 18...
Bxf3 {[%clk 0:02:15.7]} 19. Qxf3 {[%clk 0:02:48.6]} 19... b5 {[%clk 0:02:11]}
20. Ref1 {[%clk 0:02:41.4]} 20... d5 {[%clk 0:02:03]} 21. exd5 {[%clk
0:02:38.5]} 21... Nfxd5 {[%clk 0:01:59.1]} 22. Ne4 {[%clk 0:02:35.9]} 22... Kh8
{[%clk 0:01:43]} 23. Nc5 {[%clk 0:02:36.2]} 23... Qd6 {[%clk 0:01:38.2]} 24. Qh5
{[%clk 0:02:32.6]} 24... f6 {[%clk 0:01:28.7]} 25. Ne4 {[%clk 0:02:20.2]} 25...
Qc7 {[%clk 0:01:24.7]} 26. a5 {[%clk 0:02:17.5]} 26... Nxe3 {[%clk 0:01:23.8]}
27. Rxf6 {[%clk 0:01:58]} 27... Rxf6 {[%clk 0:00:45.3]} 28. Rxf6 {[%clk
0:01:55.5]} 28... N7d5 {[%clk 0:00:21]} 29. Rf7 {[%clk 0:01:49.7]} 29... Qd8
{[%clk 0:00:18.1]} 30. c4 {[%clk 0:01:32.9]} 30... bxc4 {[%clk 0:00:17.3]} 31.
dxc4 {[%clk 0:01:33.4]} 31... Ne7 {[%clk 0:00:15.4]} 32. Qxe5 {[%clk 0:01:28.6]}
32... N7f5 {[%clk 0:00:14.3]} 33. Ng3 {[%clk 0:01:11.5]} 33... Qd4 {[%clk
0:00:13]} 34. Qxd4 {[%clk 0:00:32.8]} 34... Nxd4 {[%clk 0:00:13.5]} 35. Ba4
{[%clk 0:00:33.4]} 35... Nxc4 {[%clk 0:00:14.2]} 36. Nh5 {[%clk 0:00:32.5]}
36... g5 {[%clk 0:00:12.5]} 37. Nf6 {[%clk 0:00:33]} 37... Ra7 {[%clk
0:00:04.6]} 38. Rxa7 {[%clk 0:00:33.3]} 1-0

[Event "*** Titled Tuesday Blitz"]
[Site "Chess.com"]
[Date "2019.03.05"]
[Round "8"]
[White "FearNoEvil12"]
[Black "INLOVEWITHF"]
[Result "1-0"]
[WhiteElo "1951"]
[BlackElo "2270"]
[TimeControl "180+2"]
[EndTime "14:58:04 PST"]
[Termination "FearNoEvil12 won by resignation"]

1. e4 {[%clk 0:03:01.9]} 1... c5 {[%clk 0:02:59.9]} 2. Nc3 {[%clk 0:03:01.9]}
2... d6 {[%clk 0:03:00.1]} 3. f4 {[%clk 0:03:03.3]} 3... a6 {[%clk 0:02:57.8]}
4. a4 {[%clk 0:03:02.4]} 4... f5 {[%clk 0:02:55.4]} 5. Bc4 {[%clk 0:03:00.8]}
5... e6 {[%clk 0:02:49.6]} 6. d3 {[%clk 0:03:00.2]} 6... Nf6 {[%clk 0:02:47.5]}
7. Bb3 {[%clk 0:02:56.3]} 7... Nc6 {[%clk 0:02:43.3]} 8. Nf3 {[%clk 0:02:55.5]}
8... Nd4 {[%clk 0:02:43.1]} 9. Ba2 {[%clk 0:02:50.3]} 9... Be7 {[%clk
0:02:12.3]} 10. O-O {[%clk 0:02:49.7]} 10... O-O {[%clk 0:02:11.6]} 11. exf5
{[%clk 0:02:37]} 11... Nxf5 {[%clk 0:02:07.3]} 12. Qe1 {[%clk 0:02:32.2]} 12...
d5 {[%clk 0:02:05.5]} 13. Ne5 {[%clk 0:02:30]} 13... Qc7 {[%clk 0:01:51.4]} 14.
Ne2 {[%clk 0:02:23.1]} 14... b6 {[%clk 0:01:47.2]} 15. Ng3 {[%clk 0:02:22.6]}
15... Nd6 {[%clk 0:01:46.9]} 16. c3 {[%clk 0:02:16.8]} 16... Bb7 {[%clk
0:01:28.9]} 17. Qe2 {[%clk 0:02:16.2]} 17... b5 {[%clk 0:01:17.5]} 18. Bd2
{[%clk 0:02:13.3]} 18... c4 {[%clk 0:01:16.8]} 19. d4 {[%clk 0:02:10.4]} 19...
g6 {[%clk 0:01:13.8]} 20. Rae1 {[%clk 0:02:08.6]} 20... h5 {[%clk 0:01:05.2]}
21. Nxg6 {[%clk 0:02:04.5]} 21... Nfe4 {[%clk 0:01:04]} 22. Bb1 {[%clk 0:01:25]}
22... Rf6 {[%clk 0:00:57.6]} 23. Nxe4 {[%clk 0:01:23.7]} 23... dxe4 {[%clk
0:00:51.2]} 24. Qxh5 {[%clk 0:01:20.7]} 24... Kg7 {[%clk 0:00:51.3]} 25. f5
{[%clk 0:01:15.3]} 25... Nxf5 {[%clk 0:00:48.3]} 26. Rxf5 {[%clk 0:01:14.8]}
26... Rxg6 {[%clk 0:00:46.2]} 27. Rf2 {[%clk 0:00:55.1]} 27... Rh8 {[%clk
0:00:42.9]} 28. Rf7+ {[%clk 0:00:48.2]} 28... Kxf7 {[%clk 0:00:38.1]} 29. Qxh8
{[%clk 0:00:49]} 29... Bf6 {[%clk 0:00:14.7]} 30. Rf1 {[%clk 0:00:42]} 30... Ke7
{[%clk 0:00:09]} 31. Bg5 {[%clk 0:00:22.3]} 31... Rxg5 {[%clk 0:00:02.9]} 32.
Qxf6+ {[%clk 0:00:21.2]} 32... Kd6 {[%clk 0:00:02.9]} 33. Qxg5 {[%clk
0:00:22.1]} 33... Qh7 {[%clk 0:00:03.4]} 34. Qc5+ {[%clk 0:00:15.8]} 34... Kd7
{[%clk 0:00:04.1]} 35. Qb6 {[%clk 0:00:14.1]} 35... Bd5 {[%clk 0:00:04]} 36.
Qa7+ {[%clk 0:00:12.9]} 1-0

[Event "*** Titled Tuesday Blitz"]
[Site "Chess.com"]
[Date "2019.03.05"]
[Round "8"]
[White "payto1"]
[Black "Siemba"]
[Result "0-1"]
[WhiteElo "2205"]
[BlackElo "2124"]
[TimeControl "180+2"]
[EndTime "14:58:06 PST"]
[Termination "Siemba won by checkmate"]

1. d4 {[%clk 0:03:01.9]} 1... Nf6 {[%clk 0:02:35.9]} 2. Bg5 {[%clk 0:03:01.4]}
2... Ne4 {[%clk 0:02:36.8]} 3. Bf4 {[%clk 0:03:01.6]} 3... c5 {[%clk 0:02:36.2]}
4. f3 {[%clk 0:03:01.9]} 4... Nf6 {[%clk 0:02:36.8]} 5. d5 {[%clk 0:03:02.4]}
5... Qb6 {[%clk 0:02:36.8]} 6. Bc1 {[%clk 0:03:01.9]} 6... e6 {[%clk 0:02:37]}
7. e4 {[%clk 0:03:01.9]} 7... exd5 {[%clk 0:02:37.6]} 8. exd5 {[%clk 0:03:01.7]}
8... Bd6 {[%clk 0:02:38.5]} 9. c4 {[%clk 0:02:59.7]} 9... O-O {[%clk 0:02:36.7]}
10. Bd3 {[%clk 0:02:58.9]} 10... Re8+ {[%clk 0:02:36.8]} 11. Ne2 {[%clk
0:02:58.7]} 11... Qc7 {[%clk 0:02:36.7]} 12. Bg5 {[%clk 0:02:40]} 12... Be5
{[%clk 0:02:06.7]} 13. Nbc3 {[%clk 0:02:37]} 13... h6 {[%clk 0:02:02.2]} 14. Bh4
{[%clk 0:02:31.8]} 14... d6 {[%clk 0:01:53]} 15. Qd2 {[%clk 0:02:30]} 15... a6
{[%clk 0:01:47.4]} 16. O-O {[%clk 0:02:29.4]} 16... b5 {[%clk 0:01:47]} 17. f4
{[%clk 0:02:29.4]} 17... Bd4+ {[%clk 0:01:45.7]} 18. Nxd4 {[%clk 0:02:29.4]}
18... cxd4 {[%clk 0:01:47.6]} 19. Bxf6 {[%clk 0:02:29.2]} 19... dxc3 {[%clk
0:01:46.2]} 20. Bxc3 {[%clk 0:02:28.8]} 20... bxc4 {[%clk 0:01:47.4]} 21. Bc2
{[%clk 0:02:27.7]} 21... Qc5+ {[%clk 0:01:40.2]} 22. Kh1 {[%clk 0:02:27.6]}
22... Bb7 {[%clk 0:01:40]} 23. Ba4 {[%clk 0:02:20.5]} 23... Rf8 {[%clk
0:01:12.2]} 24. Rad1 {[%clk 0:02:11.1]} 24... a5 {[%clk 0:01:08.4]} 25. f5
{[%clk 0:02:05.4]} 25... f6 {[%clk 0:00:58.9]} 26. Rf3 {[%clk 0:01:58]} 26...
Na6 {[%clk 0:00:58.6]} 27. Rg3 {[%clk 0:01:58.4]} 27... Kh7 {[%clk 0:00:51.3]}
28. Re1 {[%clk 0:01:56.9]} 28... Bxd5 {[%clk 0:00:41.1]} 29. Re7 {[%clk
0:01:54.5]} 29... Rf7 {[%clk 0:00:42.5]} 30. Bxf6 {[%clk 0:01:31.8]} 30... Rxe7
{[%clk 0:00:27.4]} 31. Bxe7 {[%clk 0:01:32.1]} 31... Qb4 {[%clk 0:00:20]} 32.
Qxb4 {[%clk 0:01:26.1]} 32... Nxb4 {[%clk 0:00:21.9]} 33. f6 {[%clk 0:01:24.9]}
33... g5 {[%clk 0:00:18.5]} 34. a3 {[%clk 0:01:23.3]} 34... Nd3 {[%clk
0:00:17.6]} 35. Bc2 {[%clk 0:01:22]} 35... Kg6 {[%clk 0:00:18.2]} 36. h4 {[%clk
0:01:21.2]} 36... Be4 {[%clk 0:00:16.1]} 37. hxg5 {[%clk 0:01:16.6]} 37... hxg5
{[%clk 0:00:18]} 38. b3 {[%clk 0:01:10.3]} 38... Nf2+ {[%clk 0:00:16.2]} 39. Kg1
{[%clk 0:01:10.3]} 39... Bxc2 {[%clk 0:00:17.6]} 40. Kxf2 {[%clk 0:01:09.2]}
40... cxb3 {[%clk 0:00:19]} 41. f7 {[%clk 0:01:06.5]} 41... Kxf7 {[%clk
0:00:19.4]} 42. Bxd6 {[%clk 0:01:03.7]} 42... b2 {[%clk 0:00:19.5]} 43. Rf3+
{[%clk 0:01:04.3]} 43... Kg6 {[%clk 0:00:19.7]} 44. Be5 {[%clk 0:01:03.5]} 44...
b1=Q {[%clk 0:00:20.9]} 45. Rf6+ {[%clk 0:01:03.7]} 45... Kh5 {[%clk 0:00:20.9]}
46. g4+ {[%clk 0:01:02.7]} 46... Kxg4 {[%clk 0:00:21.6]} 47. Rf3 {[%clk
0:01:03.4]} 47... Qb6+ {[%clk 0:00:21.1]} 48. Kg2 {[%clk 0:01:03.8]} 48... Be4
{[%clk 0:00:21.5]} 49. Kh2 {[%clk 0:01:03.5]} 49... Bxf3 {[%clk 0:00:22.2]} 50.
Bd4 {[%clk 0:01:04.4]} 50... Rh8+ {[%clk 0:00:20.3]} 51. Kg1 {[%clk 0:01:02.8]}
51... Qxd4+ {[%clk 0:00:20.8]} 52. Kf1 {[%clk 0:01:04.5]} 52... Rh1# {[%clk
0:00:22.1]} 0-1